bitfinex/quotes_BTCUSD_20240828
["timestamp","ask_amount","ask_price","bid_price","bid_amount"]
[1724862449934,0.00816,58316.0,58315.0,1.9591954]
[1724862450171,0.00816,58316.0,58315.0,1.6162314]
[1724862450398,0.00816,58316.0,58315.0,1.6022314]
[1724862450902,0.00816,58316.0,58315.0,1.6366814]
[1724862451143,0.00816,58316.0,58315.0,1.9796454]
[1724862452264,0.00816,58316.0,58315.0,1.9451954]
[1724862452510,0.0601,58343.0,58318.0,1.217314]
[1724862452803,1e-06,58319.0,58318.0,1.775411]
[1724862453031,1e-06,58319.0,58318.0,2.180058]
[1724862453256,1e-06,58319.0,58318.0,2.150158]
[1724862453473,1e-06,58319.0,58318.0,1.95324869]
[1724862453927,1e-06,58319.0,58318.0,1.91879869]
[1724862454151,1e-06,58319.0,58318.0,1.85709869]
[1724862456367,1e-06,58319.0,58318.0,2.20004569]
[1724862456595,1e-06,58319.0,58318.0,2.23449569]
[1724862456821,1e-06,58319.0,58318.0,1.85709869]
[1724862457047,1e-06,58319.0,58318.0,2.20004569]
[1724862457741,1e-06,58319.0,58318.0,1.85709869]
[1724862458434,1e-06,58319.0,58318.0,2.23449569]
[1724862459342,1e-06,58319.0,58318.0,1.89154869]
[1724862460480,1e-06,58319.0,58318.0,1.85709869]
[1724862461166,1e-06,58319.0,58298.0,0.0008954]
[1724862461167,0.0601,58318.0,58298.0,0.0008954]
[1724862461408,0.0601,58318.0,58317.0,0.171476]
[1724862461654,0.0601,58318.0,58317.0,0.514429]
[1724862461655,0.07364386,58318.0,58317.0,0.514429]
[1724862461852,0.07364386,58318.0,58317.0,1.200335]
[1724862461853,0.01354386,58318.0,58317.0,1.200335]
[1724862462083,0.02687995,58318.0,58317.0,1.200335]
[1724862462313,1e-06,58319.0,58318.0,0.857367]
[1724862462519,0.0135441,58319.0,58318.0,0.857367]
[1724862462727,0.0143581,58319.0,58318.0,1.200314]
[1724862462964,0.0143581,58319.0,58318.0,1.33234875]
[1724862463177,0.0143581,58319.0,58318.0,0.98940175]
[1724862463413,0.0143581,58319.0,58318.0,1.33234875]
[1724862463630,0.0143581,58319.0,58318.0,1.43234875]
[1724862463847,0.000815,58319.0,58318.0,1.43234875]
[1724862464069,0.01435923,58319.0,58318.0,1.43234875]
[1724862464297,0.01435923,58319.0,58318.0,1.77529575]
[1724862464793,0.01435923,58319.0,58318.0,2.19354275]
[1724862465978,0.01435923,58319.0,58318.0,1.85059575]
[1724862466213,0.01435923,58319.0,58318.0,1.43234875]
[1724862466421,0.01435923,58319.0,58318.0,1.77529575]
[1724862466641,0.01435923,58319.0,58318.0,1.85059575]
[1724862467130,0.02687437,58331.0,58330.0,1.542942]
[1724862467334,0.04043199,58331.0,58330.0,1.642942]
[1724862468508,0.04043199,58331.0,58330.0,1.718242]
[1724862468960,0.04043199,58331.0,58330.0,1.642942]
[1724862469173,0.04043199,58331.0,58330.0,1.8072362]
[1724862469652,0.04043199,58331.0,58330.0,1.4643602]
[1724862470395,0.04043932,58331.0,58330.0,1.8072362]
[1724862472089,0.01356495,58331.0,58330.0,1.8072362]
[1724862472519,0.0004,58339.0,58338.0,1.199901]
[1724862474629,0.0004,58339.0,58338.0,1.64273]
[1724862475065,0.0004,58339.0,58338.0,1.299901]
[1724862475289,0.02726786,58339.0,58338.0,1.299901]
[1724862475529,0.02726786,58339.0,58338.0,1.64273]
[1724862475798,0.0004,58339.0,58338.0,1.807003]
[1724862476293,0.0004,58339.0,58338.0,1.299901]
[1724862477697,0.0004,58339.0,58338.0,1.378301]
[1724862478633,0.0004,58339.0,58338.0,1.299901]
[1724862479070,0.02686796,58352.0,58351.0,0.514129]
[1724862479071,0.02226796,58352.0,58351.0,0.514129]
[1724862479280,0.0622,58355.0,58354.0,0.514102]
[1724862479511,0.0622,58355.0,58354.0,0.856837]
[1724862479512,0.16066237,58355.0,58354.0,0.856837]
[1724862479737,0.11206422,58355.0,58354.0,0.856837]
[1724862480193,0.08906422,58355.0,58354.0,0.856837]
[1724862480423,0.08906422,58355.0,58354.0,0.514102]
[1724862480657,0.08906422,58355.0,58354.0,0.856837]
[1724862482238,0.08906422,58355.0,58354.0,0.956837]
[1724862482443,0.0622,58355.0,58354.0,0.996587]
[1724862482911,0.0622,58355.0,58354.0,0.956837]
[1724862483640,0.13777462,58355.0,58354.0,1.299572]
[1724862483847,0.05037263,58357.0,58356.0,0.514084]
[1724862484066,0.05037263,58357.0,58346.0,0.0616]
[1724862484067,0.005,58355.0,58334.0,0.0794]
[1724862484298,0.005,58355.0,58354.0,0.514102]
[1724862484561,0.028,58355.0,58354.0,0.514102]
[1724862484759,0.07335794,58355.0,58354.0,0.856837]
[1724862484992,0.07835794,58355.0,58354.0,0.514102]
[1724862485208,0.028,58355.0,58354.0,0.856837]
[1724862485432,0.05035794,58356.0,58355.0,0.856822]
[1724862485631,0.09857462,58356.0,58355.0,1.199551]
[1724862485845,0.023,58356.0,58355.0,0.856822]
[1724862486073,0.12543788,58356.0,58355.0,0.94707333]
[1724862486316,0.02686326,58356.0,58355.0,0.94707333]
[1724862486557,0.17570777,58356.0,58355.0,0.94707333]
[1724862486775,0.17570777,58356.0,58355.0,0.856822]
[1724862487006,0.25520777,58356.0,58355.0,0.856822]
[1724862487263,0.005,58354.0,58352.0,0.0008954]
[1724862487465,0.25520777,58356.0,58352.0,0.0008954]
[1724862487466,0.15381455,58353.0,58352.0,0.5150154]
[1724862487672,0.15381455,58353.0,58352.0,0.8577624]
[1724862487901,0.14881455,58353.0,58352.0,0.8577624]
[1724862488164,0.023,58353.0,58352.0,0.8577624]
[1724862488397,0.023,58353.0,58352.0,1.28628564]
[1724862488653,0.023,58354.0,58353.0,1.199593]
[1724862488867,0.09848484,58354.0,58353.0,0.856852]
[1724862489119,0.12365111,58354.0,58353.0,0.856852]
[1724862489347,0.12365111,58354.0,58353.0,0.94262674]
[1724862489560,0.12365111,58354.0,58353.0,0.856852]
[1724862489561,0.023,58354.0,58353.0,0.856852]
[1724862489768,0.15088414,58370.0,58364.0,0.171338]
[1724862489983,0.12573695,58366.0,58359.0,0.342702]
[1724862490206,0.12573695,58366.0,58365.0,0.514006]
[1724862490428,0.023,58375.0,58362.0,0.342688]
[1724862490429,0.02686238,58369.0,58362.0,0.342688]
[1724862490649,0.10057481,58364.0,58363.0,0.514021]
[1724862490871,0.12571982,58367.0,58365.0,0.171333]
[1724862491106,0.02686238,58369.0,58359.0,0.342705]
[1724862491107,0.10057746,58368.0,58359.0,0.342705]
[1724862491393,0.10056747,58368.0,58367.0,0.513988]
[1724862491622,0.07543339,58368.0,58359.0,0.068543]
[1724862491857,0.023,58375.0,58355.0,0.0757]
[1724862491858,0.07543339,58370.0,58369.0,0.51397]
[1724862492080,0.023,58370.0,58369.0,0.51397]
[1724862492512,0.023,58371.0,58370.0,0.513961]
[1724862492732,0.04985876,58372.0,58371.0,0.513952]
[1724862492949,0.00815,58377.0,58376.0,1.027818]
[1724862493169,0.00815,58377.0,58376.0,1.4019028]
[1724862493429,0.00815,58377.0,58376.0,1.4833028]
[1724862493656,0.00815,58377.0,58376.0,1.8259088]
[1724862494363,0.00815,58377.0,58376.0,2.1685148]
[1724862494629,0.07542218,58394.0,58376.0,2.1685148]
[1724862494630,0.15086379,58409.0,58377.0,0.1458]
[1724862494843,0.1086,58416.0,58377.0,0.1458]
[1724862494844,0.07553845,58405.0,58398.0,0.856192]
[1724862495064,0.07553845,58405.0,58398.0,2.065023]
[1724862495065,0.0002067,58405.0,58398.0,2.065023]
[1724862496016,0.0002067,58405.0,58398.0,1.722546]
[1724862496271,0.0002067,58405.0,58398.0,1.641146]
[1724862496697,0.0002067,58405.0,58398.0,1.344469]
[1724862496920,0.0002067,58405.0,58398.0,1.61302064]
[1724862497144,0.0002067,58405.0,58398.0,1.46722064]
[1724862497145,0.02723725,58399.0,58398.0,1.46722064]
[1724862497849,0.02723725,58399.0,58398.0,1.298669]
[1724862498323,0.01723725,58399.0,58398.0,1.298669]
[1724862498546,0.0002067,58405.0,58404.0,1.198547]
[1724862498806,0.0002067,58405.0,58404.0,1.90975128]
[1724862499018,0.0002067,58405.0,58404.0,1.80954064]
[1724862499720,0.0002067,58405.0,58404.0,2.60214492]
[1724862500179,0.0002067,58405.0,58404.0,1.89094064]
[1724862500846,0.0002067,58405.0,58404.0,2.60214492]
[1724862502178,0.0002067,58405.0,58404.0,2.94958692]
[1724862502179,7e-07,58405.0,58404.0,2.94958692]
[1724862502408,7e-07,58405.0,58404.0,2.60714492]
[1724862502858,7e-07,58405.0,58404.0,2.25970292]
[1724862503069,7e-07,58405.0,58404.0,2.60214492]
[1724862503773,7e-07,58405.0,58404.0,1.89094064]
[1724862504266,7e-07,58405.0,58404.0,1.80954064]
[1724862505853,7e-07,58405.0,58404.0,1.298547]
[1724862506073,7e-07,58405.0,58390.0,0.0613]
[1724862506074,0.0462007,58405.0,58378.0,0.14904818]
[1724862506299,0.0462,58403.0,58402.0,0.856135]
[1724862506527,0.0462,58403.0,58402.0,1.198589]
[1724862506752,7e-07,58405.0,58396.0,0.342486]
[1724862506753,7e-07,58405.0,58404.0,0.171221]
[1724862506988,7e-07,58405.0,58404.0,1.20197051]
[1724862507671,7e-07,58405.0,58404.0,1.298547]
[1724862508581,0.02683801,58405.0,58404.0,1.640989]
[1724862508820,0.02683801,58405.0,58404.0,1.298547]
[1724862509784,0.07303801,58405.0,58404.0,1.298547]
[1724862510508,0.02683801,58405.0,58404.0,1.298547]
[1724862511864,7e-07,58405.0,58404.0,1.298547]
[1724862512086,0.0008167,58405.0,58404.0,1.298547]
[1724862513209,0.0008167,58405.0,58404.0,1.76179337]
[1724862514770,0.0008167,58405.0,58404.0,2.10423537]
[1724862514981,7e-07,58405.0,58404.0,1.76179337]
[1724862515681,0.02723667,58419.0,58418.0,0.8559]
[1724862515682,0.02537737,58419.0,58418.0,0.8559]
[1724862515893,0.02537737,58419.0,58418.0,1.19826]
[1724862517497,0.02537737,58419.0,58415.0,0.342377]
[1724862517498,0.07157737,58419.0,58415.0,0.342377]
[1724862517753,0.07157737,58419.0,58415.0,0.342373]
[1724862517948,0.0861,58418.0,58404.0,0.1]
[1724862518174,0.0861,58418.0,58417.0,0.171183]
[1724862518395,0.0861,58418.0,58417.0,0.855915]
[1724862518613,0.023,58418.0,58417.0,0.855915]
[1724862518830,0.02537737,58419.0,58418.0,0.51354]
[1724862519062,0.02537737,58419.0,58418.0,1.19826]
[1724862519576,0.02537737,58419.0,58418.0,1.54062]
[1724862519772,0.02537737,58419.0,58418.0,0.8559]
[1724862520704,0.02537737,58419.0,58418.0,1.19826]
[1724862521855,0.00020701,58425.0,58424.0,0.855812]
[1724862522309,0.00020701,58425.0,58424.0,1.198137]
[1724862523248,0.00020701,58425.0,58424.0,1.540462]
[1724862523505,0.00020701,58425.0,58424.0,1.640462]
[1724862524384,0.00334701,58430.0,58429.0,1.198032]
[1724862524624,0.00334701,58430.0,58429.0,1.6601302]
[1724862524840,0.00334701,58430.0,58429.0,1.7601302]
[1724862525779,0.00334701,58430.0,58429.0,1.298032]
[1724862526233,0.00334701,58430.0,58429.0,1.719327]
[1724862526506,0.00334701,58430.0,58429.0,1.782127]
[1724862526729,0.0999081,58477.0,58429.0,1.782127]
[1724862526730,0.50540786,58455.0,58443.0,0.079]
[1724862526987,0.0466,58454.0,58453.0,0.513232]
[1724862527279,0.061,58466.0,58457.0,0.171065]
[1724862527280,0.0466,58463.0,58457.0,0.171065]
[1724862527525,0.0466,58463.0,58457.0,0.513196]
[1724862527744,0.0466,58463.0,58444.0,0.1]
[1724862527983,0.0466,58463.0,58453.0,0.171074]
[1724862528215,0.0466,58463.0,58437.0,0.1]
[1724862528216,0.0466,58457.0,58437.0,0.1]
[1724862528433,0.0466,58457.0,58435.0,0.079]
[1724862528434,0.0466,58457.0,58442.0,0.00846647]
[1724862528667,0.0466,58457.0,58436.0,0.03445]
[1724862528668,0.0466,58457.0,58456.0,0.171068]
[1724862528893,0.0466,58457.0,58455.0,0.171069]
[1724862529130,0.0004,58459.0,58457.0,0.513196]
[1724862529351,0.0004,58459.0,58457.0,0.855327]
[1724862530798,0.0004,58459.0,58457.0,1.681389]
[1724862531020,0.0004,58459.0,58457.0,1.82432283]
[1724862531487,0.00012,58467.0,58457.0,1.82432283]
[1724862531488,0.00012,58467.0,58458.0,0.1418]
[1724862531709,0.00012,58467.0,58466.0,0.855197]
[1724862531948,0.00012,58467.0,58459.0,0.1]
[1724862532166,0.00012,58467.0,58452.0,0.0628]
[1724862532167,0.00012,58467.0,58466.0,0.171039]
[1724862532395,0.00012,58467.0,58460.0,0.84752086]
[1724862532396,0.00012,58467.0,58463.0,0.34209]
[1724862532611,0.00012,58467.0,58453.0,0.079]
[1724862532844,0.00012,58467.0,58466.0,1.01852586]
[1724862533104,0.00012,58467.0,58466.0,0.855197]
[1724862533345,0.00012,58467.0,58466.0,0.513118]
[1724862533596,0.00012,58467.0,58463.0,0.342095]
[1724862533842,0.00012,58467.0,58466.0,0.171039]
[1724862534077,0.00012,58467.0,58466.0,0.513118]
[1724862534338,0.00012,58467.0,58466.0,0.171039]
[1724862534578,0.00012,58467.0,58462.0,0.17105]
[1724862534813,0.1161,58466.0,58460.0,0.34211]
[1724862535036,0.00012,58467.0,58464.0,0.171045]
[1724862535312,0.00012,58467.0,58466.0,0.855197]
[1724862535557,0.00012,58467.0,58466.0,1.197276]
[1724862535785,0.00012,58467.0,58466.0,1.639355]
[1724862536509,0.00817,58478.0,58477.0,1.539063]
[1724862536759,0.00817,58478.0,58477.0,1.9024193]
[1724862536980,0.00817,58478.0,58477.0,2.2444333]
[1724862537204,0.00817,58478.0,58477.0,2.2099833]
[1724862537430,0.00817,58478.0,58477.0,1.9638193]
[1724862538597,0.0004,58479.0,58477.0,1.9638193]
[1724862538598,1e-06,58479.0,58477.0,0.71851858]
[1724862538849,0.170853,58530.0,58486.0,0.0816]
[1724862539089,0.50540786,58515.0,58486.0,0.0816]
[1724862539317,0.36876228,58523.0,58500.0,0.341874]
[1724862539561,0.36876228,58516.0,58507.0,0.170919]
[1724862539789,0.01361355,58515.0,58488.0,0.341946]
[1724862540022,0.01361355,58515.0,58499.0,0.50540786]
[1724862540255,0.01361355,58514.0,58497.0,0.341896]
[1724862540481,0.01361355,58513.0,58489.0,0.1]
[1724862540719,0.341733,58526.0,58497.0,0.341896]
[1724862540720,0.01361355,58512.0,58497.0,0.341896]
[1724862540965,0.01361355,58511.0,58498.0,0.0341896]
[1724862541193,0.01361355,58510.0,58494.0,0.341913]
[1724862541426,0.36876228,58522.0,58494.0,0.341913]
[1724862541427,0.36876228,58522.0,58495.0,0.1]
[1724862541652,0.01361354,58521.0,58496.0,0.0816]
[1724862541879,0.05391354,58520.0,58513.0,0.170899]
[1724862542134,0.05391354,58520.0,58496.0,0.0816]
[1724862542367,0.05391354,58520.0,58490.0,0.0199445]
[1724862542368,0.0403,58520.0,58507.0,0.341837]
[1724862542869,0.0403,58520.0,58508.0,0.10341769]
[1724862542870,0.0136132,58519.0,58508.0,0.10341769]
[1724862542872,0.0403,58532.0,58529.0,0.170854]
[1724862543102,0.01361399,58531.0,58514.0,0.341796]
[1724862543337,0.01361399,58531.0,58509.0,0.08090177]
[1724862543338,0.01361399,58530.0,58529.0,0.170853]
[1724862543571,0.01361399,58530.0,58529.0,0.655168]
[1724862543791,0.01361399,58530.0,58529.0,1.5041048]
[1724862544492,0.01361399,58530.0,58529.0,1.89923807]
[1724862544716,0.01361399,58530.0,58529.0,1.8458148]
[1724862544944,0.0004,58539.0,58538.0,0.854145]
[1724862545201,0.0004,58539.0,58538.0,1.5301175]
[1724862545706,0.0004,58539.0,58538.0,0.0665]
[1724862545926,0.0004,58539.0,58529.0,0.0655168]
[1724862545927,0.0004,58539.0,58535.0,0.0034163]
[1724862546154,0.0004,58539.0,58526.0,0.1]
[1724862546155,0.0004,58539.0,58538.0,0.854145]
[1724862546388,0.0004,58539.0,58538.0,1.036545]
[1724862546610,0.01402011,58539.0,58538.0,1.036545]
[1724862546824,0.0004,58539.0,58538.0,1.036545]
[1724862547986,0.0004,58539.0,58538.0,0.694887]
[1724862548212,0.001214,58539.0,58538.0,0.694887]
[1724862548444,0.001214,58539.0,58538.0,0.353229]
[1724862548689,0.001214,58539.0,58538.0,1.036545]
[1724862548935,0.001214,58539.0,58538.0,1.1401995]
[1724862549181,0.0004,58559.0,58545.0,0.935042]
[1724862549414,0.0004,58559.0,58545.0,1.438559]
[1724862549644,0.0004,58559.0,58545.0,2.121793]
[1724862549878,1e-06,58546.0,58545.0,2.35193992]
[1724862550107,1e-06,58546.0,58545.0,1.98317764]
[1724862550522,1e-06,58546.0,58545.0,2.32479464]
[1724862550747,1e-06,58546.0,58545.0,1.98817764]
[1724862550980,1e-06,58546.0,58545.0,2.32479464]
[1724862551216,1e-06,58546.0,58545.0,1.9916554]
[1724862551455,1e-06,58546.0,58545.0,2.36541768]
[1724862551705,1e-06,58546.0,58545.0,2.70703468]
[1724862551955,0.0004,58559.0,58558.0,1.90569628]
[1724862552182,0.0004,58559.0,58558.0,2.14489628]
[1724862552878,0.0004,58579.0,58558.0,0.2392]
[1724862552879,0.0012,58578.0,58558.0,0.2392]
[1724862553132,0.01362105,58577.0,58558.0,0.2392]
[1724862553361,0.0012,58578.0,58559.0,0.1]
[1724862553607,0.01362015,58577.0,58559.0,0.1]
[1724862553855,0.0012,58578.0,58559.0,0.1]
[1724862553856,0.38238243,58576.0,58559.0,0.1]
[1724862554118,0.01362015,58575.0,58559.0,0.270766]
[1724862554365,0.36876228,58567.0,58544.0,0.0765]
[1724862554596,0.170767,58560.0,58552.0,0.50540786]
[1724862554836,0.0012,58559.0,58538.0,0.0765]
[1724862555088,0.35515273,58558.0,58531.0,0.0765]
[1724862555341,0.341503,58565.0,58536.0,0.170832]
[1724862555342,0.36876228,58552.0,58536.0,0.170832]
[1724862555626,0.0012,58549.0,58529.0,0.341709]
[1724862555863,0.0012,58549.0,58531.0,0.170848]
[1724862556089,0.170821,58541.0,58531.0,0.170847]
[1724862556350,0.03660611,58540.0,58523.0,0.0765]
[1724862556579,0.01360611,58539.0,58523.0,0.0765]
[1724862556824,0.03660611,58538.0,58523.0,0.0765]
[1724862557047,0.03660611,58538.0,58507.0,0.40321228]
[1724862557048,0.03660611,58537.0,58521.0,0.0765]
[1724862557275,0.01360611,58536.0,58515.0,0.0765]
[1724862557512,0.170844,58533.0,58520.0,0.341762]
[1724862557762,0.03660611,58532.0,58520.0,0.341762]
[1724862557998,0.193838,58535.0,58525.0,0.170865]
[1724862557999,0.01360611,58531.0,58525.0,0.170865]
[1724862558262,0.0135974,58530.0,58525.0,0.170865]
[1724862558488,0.0135974,58530.0,58516.0,0.84719386]
[1724862558489,0.0135974,58529.0,58528.0,0.341716]
[1724862558750,0.023,58535.0,58517.0,0.09236939]
[1724862559023,0.023,58535.0,58534.0,0.17084]
[1724862559241,0.023,58535.0,58524.0,0.341736]
[1724862559242,0.0135979,58534.0,58524.0,0.341736]
[1724862559523,0.0365979,58535.0,58525.0,0.1]
[1724862559789,0.0365979,58535.0,58522.0,0.1]
[1724862559790,0.0135979,58534.0,58522.0,0.1]
[1724862560048,0.06349439,58533.0,58522.0,0.00341697]
[1724862560281,0.0135979,58532.0,58524.0,0.341736]
[1724862560524,0.0135979,58532.0,58531.0,0.512548]
[1724862560760,0.0135979,58538.0,58531.0,0.341699]
[1724862560998,0.0365979,58537.0,58536.0,0.170835]
[1724862561233,0.0365979,58537.0,58536.0,0.854175]
[1724862561479,0.0365979,58537.0,58525.0,0.1]
[1724862561716,0.0135979,58536.0,58523.0,0.0765]
[1724862562004,0.023,58537.0,58536.0,0.170835]
[1724862562268,0.36996228,58546.0,58534.0,0.683362]
[1724862562269,0.01359675,58535.0,58534.0,0.683362]
[1724862562511,0.01359696,58537.0,58536.0,0.854175]
[1724862562986,0.01359769,58537.0,58528.0,0.01]
[1724862563227,0.01359769,58536.0,58521.0,0.1]
[1724862563459,0.0405,58542.0,58530.0,0.17085]
[1724862563460,0.03659769,58535.0,58530.0,0.17085]
[1724862563686,0.01479769,58534.0,58525.0,0.341733]
[1724862563950,0.03659769,58533.0,58521.0,0.0108527]
[1724862564203,0.01359769,58532.0,58528.0,0.170857]
[1724862564449,0.023,58531.0,58528.0,0.170857]
[1724862564671,0.023,58531.0,58519.0,0.417564]
[1724862564672,0.01359769,58530.0,58529.0,0.170852]
[1724862564905,0.01359769,58530.0,58529.0,0.512562]
[1724862565136,0.01359769,58530.0,58529.0,0.854272]
[1724862566217,0.01359769,58530.0,58529.0,1.436882]
[1724862567612,0.01359769,58530.0,58529.0,1.371782]
[1724862568284,0.01359769,58530.0,58529.0,1.295982]
[1724862569269,0.0405,58543.0,58541.0,0.170819]
[1724862569508,0.023,58542.0,58541.0,0.170819]
[1724862569724,0.0365978,58542.0,58541.0,0.170819]
[1724862570194,0.0365978,58542.0,58541.0,0.512459]
[1724862570407,0.0365978,58542.0,58532.0,0.341687]
[1724862570657,0.0365978,58542.0,58530.0,0.84711186]
[1724862570931,0.0135978,58541.0,58536.0,0.341668]
[1724862571159,0.0365978,58540.0,58538.0,0.170828]
[1724862571402,0.0135978,58539.0,58538.0,0.170829]
[1724862571617,0.0365978,58539.0,58538.0,0.170829]
[1724862571839,0.0135978,58539.0,58538.0,0.170829]
[1724862572110,0.0365978,58539.0,58538.0,0.170829]
[1724862573092,0.0365978,58539.0,58538.0,0.512487]
[1724862573345,0.0365978,58539.0,58538.0,0.170829]
[1724862573561,0.0365978,58539.0,58538.0,0.512487]
[1724862573820,0.0365978,58539.0,58527.0,0.0792]
[1724862574037,0.023,58539.0,58538.0,0.170829]
[1724862574318,0.03660019,58539.0,58538.0,0.512487]
[1724862574559,0.03660019,58539.0,58538.0,0.854145]
[1724862575509,0.023,58539.0,58538.0,0.854145]
[1724862575746,0.01360033,58539.0,58538.0,0.512487]
[1724862576016,0.03660033,58539.0,58538.0,0.854145]
[1724862576228,0.03660033,58539.0,58538.0,1.195803]
[1724862576925,0.03660033,58539.0,58538.0,2.019619]
[1724862576926,0.01360033,58539.0,58538.0,2.019619]
[1724862577156,0.341471,58570.0,58557.0,0.341542]
[1724862577631,0.341489,58568.0,58557.0,0.341542]
[1724862577859,0.341489,58568.0,58550.0,0.341583]
[1724862577860,0.00020622,58580.0,58566.0,0.68299]
[1724862578118,0.00020622,58580.0,58566.0,1.263531]
[1724862578358,0.00020622,58580.0,58566.0,1.195232]
[1724862581133,0.00020622,58580.0,58566.0,0.853737]
[1724862581400,0.00020622,58580.0,58566.0,1.195232]
[1724862582094,0.00020622,58580.0,58566.0,0.853737]
[1724862582356,0.00020622,58580.0,58566.0,0.512242]
[1724862582595,0.36876228,58578.0,58561.0,0.341518]
[1724862582828,0.341435,58577.0,58552.0,0.0756]
[1724862583068,0.36876228,58571.0,58553.0,0.06431079]
[1724862583315,0.023,58570.0,58564.0,0.341505]
[1724862583525,0.023,58570.0,58564.0,0.170751]
[1724862583776,0.341435,58577.0,58556.0,0.34155]
[1724862583777,0.023,58572.0,58556.0,0.34155]
[1724862584021,0.023,58572.0,58566.0,0.170747]
[1724862584525,0.023,58572.0,58566.0,0.512242]
[1724862584734,0.170735,58571.0,58552.0,0.0756]
[1724862584955,0.023,58570.0,58560.0,0.341527]
[1724862585177,0.023,58570.0,58566.0,0.512242]
[1724862585403,0.0004,58579.0,58566.0,1.277632]
[1724862585647,0.0004,58579.0,58566.0,1.341832]
[1724862586549,0.0004,58579.0,58566.0,1.683327]
[1724862586785,0.0004,58579.0,58566.0,1.85187864]
[1724862586998,0.0004,58579.0,58566.0,1.683327]
[1724862587929,0.0004,58579.0,58566.0,1.341832]
[1724862588229,0.0004,58579.0,58566.0,1.195232]
[1724862588498,0.0004,58579.0,58566.0,1.618527]
[1724862588792,0.0004,58579.0,58578.0,0.853562]
[1724862588959,0.0004,58579.0,58578.0,1.370387]
[1724862589193,0.0140244,58579.0,58578.0,2.115437]
[1724862589406,0.0140244,58579.0,58578.0,2.28398864]
[1724862589845,0.00020622,58580.0,58579.0,1.536385]
[1724862590070,0.00020622,58580.0,58579.0,2.020604]
[1724862590314,0.00020622,58580.0,58579.0,2.120604]
[1724862590528,0.00020622,58580.0,58579.0,2.15342438]
[1724862590772,0.00816,58589.0,58588.0,1.684847]
[1724862591246,0.00816,58589.0,58588.0,2.126213]
[1724862591479,0.00816,58589.0,58588.0,1.784847]
[1724862591721,0.00816,58589.0,58588.0,1.443481]
[1724862591932,0.00816,58589.0,58588.0,0.919015]
[1724862592162,0.00816,58589.0,58588.0,1.5389174]
[1724862592399,0.00816,58589.0,58588.0,1.8802834]
[1724862593351,0.341231,58612.0,58600.0,0.170646]
[1724862593587,0.341231,58612.0,58588.0,0.0833]
[1724862593588,0.36876228,58610.0,58588.0,0.0833]
[1724862593861,0.37076228,58610.0,58590.0,0.170676]
[1724862594100,0.341268,58605.0,58590.0,0.50540786]
[1724862594334,0.023,58604.0,58581.0,0.0781]
[1724862594564,0.16348854,58609.0,58581.0,0.0781]
[1724862594565,0.341309,58598.0,58589.0,0.50540786]
[1724862594773,0.341309,58598.0,58581.0,0.0781]
[1724862594774,0.341321,58596.0,58587.0,0.170685]
[1724862594999,0.341322,58596.0,58585.0,0.17069]
[1724862595214,0.023,58595.0,58587.0,0.170685]
[1724862595446,0.17067,58593.0,58575.0,0.0802]
[1724862595664,0.023,58592.0,58575.0,0.0802]
[1724862595898,0.023,58592.0,58581.0,0.341406]
[1724862596125,0.023,58596.0,58575.0,0.0802]
[1724862596340,0.341383,58586.0,58573.0,0.34145]
[1724862596631,0.000814,58589.0,58572.0,0.065]
[1724862596632,0.34139,58584.0,58572.0,0.065]
[1724862596881,0.341368,58588.0,58577.0,0.170714]
[1724862597133,0.023,58587.0,58567.0,0.0632]
[1724862597375,0.341379,58586.0,58570.0,0.67614186]
[1724862597611,0.023,58585.0,58571.0,0.341464]
[1724862597850,0.170701,58582.0,58571.0,0.341464]
[1724862598071,0.023,58581.0,58576.0,0.170717]
[1724862598558,0.193701,58582.0,58574.0,0.170722]
[1724862598768,0.023,58582.0,58572.0,0.341454]
[1724862599000,0.36876228,58580.0,58552.0,0.341572]
[1724862599225,0.36876228,58573.0,58555.0,0.341554]
[1724862599479,0.170742,58568.0,58565.0,0.50540786]
[1724862599746,0.023,58572.0,58556.0,0.341553]
[1724862599941,0.023,58575.0,58559.0,0.341532]
[1724862600170,0.34146,58572.0,58562.0,0.341517]
[1724862600400,0.023,58579.0,58552.0,0.06488079]
[1724862600401,0.341473,58570.0,58552.0,0.06488079]
[1724862600616,0.341474,58570.0,58550.0,0.57020786]
[1724862600851,0.023,58571.0,58548.0,0.170799]
[1724862600852,0.341514,58563.0,58548.0,0.170799]
[1724862601067,0.0594473,58569.0,58549.0,0.50540786]
[1724862601068,0.36876228,58559.0,58549.0,0.50540786]
[1724862601287,0.36876228,58559.0,58535.0,0.0798]
[1724862601288,0.170783,58554.0,58543.0,0.00020562]
[1724862601573,0.023,58553.0,58545.0,0.341617]
[1724862601814,0.023,58553.0,58543.0,0.00020562]
[1724862602077,0.170794,58550.0,58543.0,0.17101862]
[1724862602305,0.023,58549.0,58543.0,0.00020562]
[1724862602555,0.023,58554.0,58543.0,0.00020562]
[1724862602824,0.170811,58544.0,58543.0,0.00020562]
[1724862603094,0.854057,58544.0,58543.0,0.00020562]
[1724862603308,0.877057,58544.0,58543.0,0.00020562]
[1724862603794,0.023,58544.0,58543.0,0.00020562]
[1724862604459,0.170803,58547.0,58543.0,0.00020562]
[1724862604686,0.170811,58544.0,58543.0,0.00020562]
[1724862605154,0.535434,58544.0,58543.0,0.00020562]
[1724862605418,0.023,58544.0,58543.0,0.00020562]
[1724862605668,0.512434,58544.0,58543.0,0.00020562]
[1724862605913,0.002,58550.0,58543.0,0.00020562]
[1724862605914,0.0501543,58554.0,58543.0,0.00020562]
[1724862606129,0.0501543,58557.0,58544.0,0.0631]
[1724862606345,0.0501543,58558.0,58544.0,0.0631]
[1724862606586,0.0501543,58560.0,58554.0,0.341562]
[1724862606767,0.05010513,58560.0,58545.0,0.04049406]
[1724862607037,0.02254731,58559.0,58549.0,0.34159]
[1724862607265,0.36876228,58554.0,58545.0,0.341616]
[1724862607549,0.36876228,58554.0,58544.0,0.0631]
[1724862607550,0.170808,58545.0,58544.0,0.0631]
[1724862607761,0.03687623,58553.0,58543.0,0.00020562]